bitfinex/quotes_BTCUSD_20250314
["timestamp","ask_amount","ask_price","bid_price","bid_amount"]
[1741947214835,0.31892009,82895.0,82894.0,0.14998772]
[1741947215039,0.02045494,82901.0,82900.0,0.253316]
[1741947215219,0.312059,82921.0,82916.0,0.253265]
[1741947215355,0.5412,82919.0,82917.0,0.00827318]
[1741947215581,0.5412,82919.0,82907.0,0.012061]
[1741947215582,0.012061,82911.0,82904.0,0.253302]
[1741947215788,0.0206981,82911.0,82907.0,0.012061]
[1741947216046,0.3,82912.0,82909.0,0.241228]
[1741947216259,0.3,82912.0,82911.0,0.012061]
[1741947216588,0.253266,82917.0,82911.0,0.02035487]
[1741947216798,0.3,82918.0,82913.0,0.01206]
[1741947217115,0.31206,82918.0,82914.0,0.00828353]
[1741947217328,0.31206,82918.0,82914.0,0.24949653]
[1741947217540,0.31206,82918.0,82914.0,0.241213]
[1741947217740,0.3,82919.0,82918.0,0.01206]
[1741947217945,0.3,82919.0,82915.0,0.23435248]
[1741947218162,0.3,82919.0,82909.0,0.012061]
[1741947218163,0.01206,82915.0,82909.0,0.012061]
[1741947218358,0.3,82916.0,82910.0,0.253284]
[1741947218596,0.3,82916.0,82911.0,0.253281]
[1741947218745,0.3,82916.0,82912.0,0.241217]
[1741947219131,0.3,82916.0,82912.0,0.253277]
[1741947219318,0.3,82917.0,82913.0,0.01206]
[1741947219750,0.3,82917.0,82914.0,0.241213]
[1741947219973,0.3,82917.0,82916.0,0.01206]
[1741947220154,0.3,82917.0,82915.0,0.241208]
[1741947220307,0.33967409,82918.0,82915.0,0.241208]
[1741947220728,0.59293809,82918.0,82913.0,0.01206]
[1741947220923,0.33967409,82918.0,82915.0,0.24121]
[1741947221198,0.33967409,82918.0,82916.0,0.253265]
[1741947221403,0.03967409,82918.0,82916.0,0.253265]
[1741947221549,0.03967409,82918.0,82914.0,0.253272]
[1741947222327,0.03967409,82918.0,82913.0,0.01206]
[1741947222328,0.28087609,82918.0,82913.0,0.01206]
[1741947222574,0.241207,82917.0,82912.0,0.253276]
[1741947223113,0.241207,82917.0,82912.0,0.01206]
[1741947223527,0.241207,82917.0,82913.0,0.00828697]
[1741947224273,0.253267,82917.0,82913.0,0.00828697]
[1741947224710,0.3,82915.0,82913.0,0.00828697]
[1741947225494,0.3,82915.0,82911.0,0.253281]
[1741947225700,0.3,82915.0,82914.0,0.00829584]
[1741947225900,0.01206,82917.0,82911.0,0.253281]
[1741947226105,0.01206,82917.0,82914.0,0.00829584]
[1741947226305,0.01206,82917.0,82911.0,0.253281]
[1741947226639,0.03967409,82918.0,82914.0,0.253271]
[1741947226791,0.29293809,82918.0,82915.0,0.00829239]
[1741947227132,0.241207,82916.0,82911.0,0.253281]
[1741947227366,0.01206,82917.0,82912.0,0.253276]
[1741947227584,0.253267,82917.0,82912.0,0.241216]
[1741947227758,0.29293809,82918.0,82912.0,0.253276]
[1741947228282,0.29293809,82918.0,82915.0,0.0001692]
[1741947229186,0.3,82917.0,82915.0,0.0001692]
[1741947229689,0.31206,82917.0,82915.0,0.0001692]
[1741947230094,0.241207,82916.0,82915.0,0.0001692]
[1741947230298,0.253267,82916.0,82915.0,0.0001692]
[1741947230499,0.01206,82916.0,82915.0,0.0001692]
[1741947230698,0.253267,82916.0,82915.0,0.0001692]
[1741947232772,0.253267,82916.0,82915.0,0.00846159]
[1741947232969,0.253267,82916.0,82915.0,0.0001692]
[1741947237147,0.553267,82916.0,82915.0,0.0001692]
[1741947238349,0.56711078,82916.0,82915.0,0.0001692]
[1741947239856,0.5536054,82916.0,82915.0,0.0001692]
[1741947243059,0.57252301,82916.0,82915.0,0.0001692]
[1741947243705,0.01925601,82916.0,82915.0,0.0001692]
[1741947244298,0.03131601,82916.0,82915.0,0.0001692]
[1741947244528,0.0123984,82916.0,82915.0,0.0001692]
[1741947244806,0.0123984,82916.0,82915.0,0.00846903]
[1741947245014,0.0123984,82916.0,82915.0,0.0001692]
[1741947245197,0.0123984,82916.0,82915.0,0.00846903]
[1741947245395,0.0123984,82916.0,82915.0,0.0001692]
[1741947245577,0.0123984,82916.0,82915.0,0.00846903]
[1741947245958,0.3123984,82916.0,82915.0,0.00846903]
[1741947246145,0.3003384,82916.0,82915.0,0.02052903]
[1741947246381,0.3003384,82916.0,82915.0,0.00846903]
[1741947247265,0.33131589,82916.0,82915.0,0.00846903]
[1741947249118,0.31925589,82916.0,82915.0,0.00846903]
[1741947249321,0.01925589,82916.0,82915.0,0.0001692]
[1741947249674,0.01925589,82916.0,82915.0,0.00846903]
[1741947250846,0.01925589,82916.0,82915.0,0.02052903]
[1741947253434,0.01925589,82916.0,82915.0,0.00846903]
[1741947253646,0.01925589,82916.0,82915.0,0.02052903]
[1741947256456,0.56046289,82916.0,82915.0,0.00846903]
[1741947256662,0.57252289,82916.0,82915.0,0.00846903]
[1741947256972,0.57252289,82916.0,82915.0,0.0001692]
[1741947257170,0.57252289,82916.0,82915.0,0.00846664]
[1741947257373,0.57252289,82916.0,82915.0,0.0001692]
[1741947257579,0.57252289,82916.0,82915.0,0.00846664]
[1741947257779,0.57252289,82916.0,82915.0,0.0001692]
[1741947258024,0.68460942,82916.0,82915.0,0.00846664]
[1741947258286,0.57252289,82916.0,82915.0,0.0001692]
[1741947258491,0.01206,82916.0,82915.0,0.0001692]
[1741947258714,0.03097743,82916.0,82915.0,0.0001692]
[1741947258891,0.03097743,82916.0,82915.0,0.00846664]
[1741947259125,0.253267,82916.0,82915.0,0.00846664]
[1741947261720,0.2721844,82916.0,82915.0,0.00846664]
[1741947262239,0.2721844,82916.0,82915.0,0.0001692]
[1741947264522,0.2725228,82916.0,82915.0,0.0001692]
[1741947267241,0.5725228,82916.0,82915.0,0.0001692]
[1741947292517,0.3192558,82916.0,82915.0,0.0001692]
[1741947292815,0.3313158,82916.0,82915.0,0.0001692]
[1741947293047,0.3313158,82916.0,82915.0,0.00847217]
[1741947293249,0.3313158,82916.0,82915.0,0.0001692]
[1741947293453,0.3313158,82916.0,82915.0,0.00847217]
[1741947293585,0.3313158,82916.0,82915.0,0.0001692]
[1741947293770,0.3313158,82916.0,82915.0,0.00847217]
[1741947295076,0.5725228,82916.0,82915.0,0.00847217]
[1741947297142,0.5725228,82916.0,82915.0,0.0001692]
[1741947303983,0.3192558,82916.0,82915.0,0.0001692]
[1741947304252,0.5725228,82916.0,82915.0,0.00851764]
[1741947304489,0.3192558,82916.0,82915.0,0.0001692]
[1741947305001,0.63274932,82916.0,82915.0,0.00851764]
[1741947305479,0.61383192,82916.0,82915.0,0.0001692]
[1741947306172,0.3,82904.0,82901.0,0.07773459]
[1741947306941,0.3,82904.0,82902.0,0.00839327]
[1741947307666,0.3,82910.0,82909.0,0.241228]
[1741947307885,0.3,82910.0,82909.0,0.253289]
[1741947308127,0.3,82910.0,82909.0,0.26165813]
[1741947308411,0.31891788,82910.0,82909.0,0.30945813]
[1741947308667,0.01891788,82910.0,82909.0,0.05616913]
[1741947308891,0.01891788,82910.0,82909.0,0.05816913]
[1741947309096,0.01891788,82910.0,82909.0,0.0498]
[1741947309309,0.01891788,82910.0,82909.0,0.1282]
[1741947309550,0.01891788,82910.0,82909.0,0.13656913]
[1741947310033,0.01891788,82910.0,82909.0,0.13856913]
[1741947311889,0.01891788,82910.0,82909.0,0.15063013]
[1741947312735,0.01891788,82910.0,82909.0,0.24288801]
[1741947312889,0.01891788,82910.0,82909.0,0.39170279]
[1741947313125,8.8e-07,82910.0,82909.0,0.39170279]
[1741947313350,0.0003384,82916.0,82915.0,0.25327]
[1741947313550,0.0003384,82916.0,82915.0,0.50975]
[1741947313775,0.0003384,82916.0,82915.0,0.62482723]
[1741947314989,0.0003384,82916.0,82915.0,0.62982723]
[1741947315576,0.0003384,82916.0,82915.0,0.49434723]
[1741947315805,0.0003384,82916.0,82915.0,0.62982723]
[1741947316430,0.0003384,82916.0,82915.0,0.63482723]
[1741947316800,0.0003384,82916.0,82915.0,0.52866839]
[1741947319691,0.0003384,82916.0,82915.0,0.39318839]
[1741947319854,0.0003384,82916.0,82915.0,0.52866839]
[1741947320638,0.0003384,82916.0,82915.0,0.39318839]
[1741947320842,0.0003384,82916.0,82915.0,0.52866839]
[1741947322398,0.0003384,82916.0,82915.0,0.39318839]
[1741947323153,0.0003384,82916.0,82915.0,0.52862839]
[1741947323593,0.0003384,82916.0,82915.0,0.39318839]
[1741947323809,0.0003384,82916.0,82915.0,0.52862839]
[1741947324679,0.0003384,82916.0,82915.0,0.39318839]
[1741947324872,0.0003384,82916.0,82915.0,0.52862839]
[1741947325688,0.0003384,82916.0,82915.0,0.39318839]
[1741947325886,0.0003384,82916.0,82915.0,0.52862839]
[1741947326636,0.0003384,82916.0,82915.0,0.39318839]
[1741947331431,0.0003384,82916.0,82915.0,0.27218839]
[1741947332648,0.0003384,82916.0,82915.0,0.35268839]
[1741947334907,0.01925338,82916.0,82915.0,0.35268839]
[1741947337261,0.01925338,82916.0,82915.0,0.40058839]
[1741947344142,0.11925338,82916.0,82915.0,0.40058839]
[1741947347118,0.3,82929.0,82924.0,0.253241]
[1741947347344,0.12674114,82940.0,82924.0,0.253241]
[1741947347345,0.0791,82946.0,82942.0,0.012056]
[1741947347460,0.0247109,82947.0,82942.0,0.253188]
[1741947347666,0.299769,82949.0,82941.0,0.012056]
[1741947347868,0.3,82947.0,82942.0,0.00733806]
[1741947348235,0.3003386,82943.0,82939.0,0.241139]
[1741947348427,0.30046194,82943.0,82942.0,0.00735426]
[1741947348670,0.30046194,82943.0,82941.0,0.241133]
[1741947349004,0.30046194,82943.0,82942.0,0.00735426]
[1741947349206,0.00046194,82943.0,82942.0,0.01941026]
[1741947350258,0.01937319,82943.0,82942.0,0.01941026]
[1741947350877,0.01768244,82943.0,82942.0,0.26054226]
[1741947351122,0.12674114,82952.0,82942.0,0.00735426]
[1741947351247,0.03683867,82943.0,82942.0,0.00735426]
[1741947351448,0.01891114,82943.0,82942.0,0.00735426]
[1741947351649,0.27209614,82943.0,82942.0,0.001]
[1741947351851,0.29018352,82943.0,82942.0,0.00834335]
[1741947352098,0.241196,82920.0,82919.0,0.0453]
[1741947352271,0.012059,82924.0,82911.0,0.057361]
[1741947352451,0.012059,82923.0,82919.0,0.00742782]
[1741947352652,0.253245,82924.0,82919.0,0.253255]
[1741947352653,0.012059,82924.0,82919.0,0.253255]
[1741947352866,0.01891456,82921.0,82920.0,0.00742437]
[1741947353259,0.01891456,82921.0,82920.0,0.26067937]
[1741947354107,0.3,82924.0,82923.0,0.253246]
[1741947354487,0.3,82924.0,82923.0,0.26066813]
[1741947354852,0.3,82929.0,82924.0,0.241182]
[1741947355062,0.3,82929.0,82925.0,0.241179]
[1741947355262,0.3,82929.0,82925.0,0.2608682]
[1741947355999,0.3,82931.0,82926.0,0.253234]
[1741947356221,0.3,82931.0,82926.0,0.26086075]
[1741947356450,0.3,82931.0,82928.0,0.25323]
[1741947356686,0.3,82931.0,82930.0,0.012058]
[1741947357269,0.312057,82936.0,82932.0,0.241161]
[1741947357476,0.312057,82936.0,82930.0,0.01967096]
[1741947357477,0.018914,82931.0,82930.0,0.26083796]
[1741947357685,0.018914,82931.0,82930.0,0.253225]
[1741947358076,0.018914,82931.0,82930.0,0.26083796]
[1741947358262,0.018914,82931.0,82930.0,0.26283796]
[1741947359112,0.018914,82931.0,82930.0,0.00961296]
[1741947360035,0.018914,82931.0,82930.0,0.01061296]
[1741947360245,0.318914,82931.0,82930.0,0.003]
[1741947360829,0.318914,82931.0,82930.0,0.01060635]
[1741947361243,0.018914,82931.0,82930.0,0.01060635]
[1741947361456,0.030972,82931.0,82930.0,0.01060635]
[1741947362061,0.030972,82931.0,82930.0,0.003]
[1741947362481,0.018914,82931.0,82930.0,0.01085016]
[1741947362702,0.018914,82931.0,82930.0,0.003]
[1741947362904,0.018914,82931.0,82930.0,0.01085068]
[1741947363113,0.018914,82931.0,82930.0,0.003]
[1741947363315,0.018914,82931.0,82930.0,0.02290868]
[1741947363526,0.018914,82931.0,82930.0,0.015058]
[1741947363728,0.018914,82931.0,82925.0,0.012059]
[1741947363729,0.012059,82919.0,82908.0,0.012061]
[1741947363942,0.31206,82916.0,82908.0,0.012061]
[1741947364149,0.31206,82916.0,82905.0,0.253298]
[1741947364573,0.31206,82916.0,82909.0,0.0122303]
[1741947364784,0.3,82916.0,82915.0,0.0123984]
[1741947364987,0.3,82924.0,82919.0,0.012059]
[1741947365189,0.3,82924.0,82919.0,0.253255]
[1741947365400,0.3,82924.0,82923.0,0.253246]
[1741947365603,0.3,82924.0,82923.0,0.012059]
[1741947366163,0.0122272,82931.0,82924.0,0.253243]
[1741947366563,0.3,82930.0,82926.0,0.253235]
[1741947367228,0.31891534,82930.0,82926.0,0.253235]
[1741947368157,0.31991534,82930.0,82926.0,0.253235]
[1741947368366,0.01991534,82930.0,82927.0,0.253231]
[1741947368740,0.02091534,82930.0,82928.0,0.24117]
[1741947369039,0.02091534,82930.0,82928.0,0.253228]
[1741947369404,0.01991534,82930.0,82928.0,0.253228]
[1741947369817,0.02091534,82930.0,82929.0,0.012058]
[1741947370225,0.01991534,82930.0,82929.0,0.012058]
[1741947370630,0.01891534,82930.0,82929.0,0.012058]
[1741947370973,0.01991534,82930.0,82929.0,0.012058]
[1741947371389,0.01891534,82930.0,82929.0,0.012058]
[1741947371601,0.01891534,82930.0,82929.0,0.013058]
[1741947372698,0.01991534,82930.0,82929.0,0.013058]
[1741947373100,0.01991534,82930.0,82929.0,0.01988378]
[1741947373304,0.01891534,82930.0,82929.0,0.01988378]
[1741947373504,0.01891534,82930.0,82929.0,0.02088378]
[1741947376570,0.01891534,82930.0,82929.0,0.02122218]
[1741947381674,0.03018548,82930.0,82929.0,0.02122218]
[1741947389726,0.03035468,82930.0,82929.0,0.02122218]
[1741947394140,2.33035468,82930.0,82929.0,0.02122218]
[1741947394349,2.35291716,82930.0,82929.0,0.02122218]
[1741947394524,2.35291716,82930.0,82929.0,0.0143964]
[1741947402514,2.35291716,82930.0,82929.0,0.0023384]
[1741947402933,2.35291716,82930.0,82929.0,0.0143964]
[1741947403152,2.35291716,82930.0,82929.0,0.02141661]
[1741947407153,2.33035468,82930.0,82929.0,0.02141661]
[1741947414077,2.35296137,82930.0,82929.0,0.02141661]
[1741947416641,2.33035468,82930.0,82929.0,0.02141661]
[1741947418525,2.33035468,82930.0,82929.0,0.12485287]
[1741947418902,2.31143934,82930.0,82929.0,0.02141661]
[1741947421277,2.33035262,82930.0,82929.0,0.02141661]
[1741947423213,2.33035262,82930.0,82929.0,0.15111661]
[1741947423214,1.08026262,82930.0,82929.0,0.15111661]
[1741947423424,8.2e-07,82931.0,82930.0,0.382925]
[1741947423629,8.2e-07,82931.0,82930.0,0.39746585]
[1741947423849,8.2e-07,82931.0,82930.0,0.5139906]
[1741947424051,8.2e-07,82931.0,82930.0,0.65639305]
[1741947424254,8.2e-07,82931.0,82930.0,0.52099305]
[1741947424456,8.2e-07,82931.0,82930.0,0.65639305]
[1741947424670,8.2e-07,82931.0,82930.0,0.52099305]
[1741947424885,8.2e-07,82931.0,82930.0,0.65639305]
[1741947425092,8.2e-07,82931.0,82930.0,0.52099305]
[1741947425321,8.2e-07,82931.0,82930.0,0.65639305]
[1741947425884,8.2e-07,82931.0,82930.0,0.66239305]
[1741947426674,8.2e-07,82931.0,82930.0,0.66839305]
[1741947426873,8.2e-07,82931.0,82930.0,0.53299305]
[1741947427101,8.2e-07,82931.0,82930.0,0.66839305]
[1741947427377,8.2e-07,82931.0,82930.0,0.53299305]
[1741947427631,8.2e-07,82931.0,82930.0,0.66839305]
[1741947427801,8.2e-07,82931.0,82930.0,0.53299305]
[1741947427976,8.2e-07,82931.0,82930.0,0.66839305]
[1741947430492,8.2e-07,82931.0,82930.0,0.53299305]
[1741947430721,8.2e-07,82931.0,82930.0,0.66839305]
[1741947431884,8.2e-07,82931.0,82930.0,0.53299305]
[1741947432090,8.2e-07,82931.0,82930.0,0.66839305]
[1741947433332,4e-07,82943.0,82942.0,0.012056]
[1741947433549,4e-07,82943.0,82942.0,0.15330209]
[1741947433762,4e-07,82943.0,82942.0,0.16024088]
[1741947433964,4e-07,82943.0,82942.0,0.27676563]
[1741947434141,4e-07,82943.0,82942.0,0.27556039]
[1741947434578,4e-07,82943.0,82942.0,0.28056039]
[1741947434787,7.965e-05,82943.0,82942.0,0.28056039]
[1741947436221,7.965e-05,82943.0,82942.0,0.41386039]
[1741947436561,7.965e-05,82943.0,82942.0,0.41986039]
[1741947438917,7.965e-05,82943.0,82942.0,0.27301954]
[1741947439159,7.965e-05,82943.0,82942.0,0.40837954]
[1741947439321,7.965e-05,82943.0,82942.0,0.01893879]
[1741947439979,7.965e-05,82943.0,82942.0,0.03099479]
[1741947440398,7.965e-05,82943.0,82942.0,0.02499479]
[1741947440832,7.965e-05,82943.0,82942.0,0.02899479]
[1741947441214,7.965e-05,82943.0,82942.0,0.02299479]
[1741947441448,7.965e-05,82943.0,82942.0,0.02899479]
[1741947441649,7.965e-05,82943.0,82942.0,0.18835911]
[1741947441852,7.965e-05,82943.0,82942.0,0.18715357]
[1741947442064,7.965e-05,82943.0,82942.0,0.18115357]
[1741947442242,7.965e-05,82943.0,82942.0,0.18515357]
[1741947442612,7.965e-05,82943.0,82942.0,0.18115357]
[1741947442814,7.965e-05,82943.0,82942.0,0.18715357]
[1741947443015,7.965e-05,82943.0,82942.0,0.188359]
[1741947443222,7.965e-05,82943.0,82942.0,0.182359]
[1741947443403,7.965e-05,82943.0,82942.0,0.188359]
[1741947443603,7.965e-05,82943.0,82942.0,0.184359]
[1741947444005,7.965e-05,82943.0,82942.0,0.190359]
[1741947448470,7.965e-05,82943.0,82942.0,0.20489985]
[1741947449688,7.965e-05,82943.0,82942.0,0.20523825]
[1741947450531,0.253105,82970.0,82961.0,0.241075]
[1741947450739,0.2531694,82970.0,82961.0,0.241075]
[1741947450948,0.2729956,82970.0,82961.0,0.3158104]
[1741947451109,0.253107,82969.0,82962.0,0.00684222]
[1741947453463,0.3,82966.0,82962.0,0.00684222]
[1741947454050,0.3,82966.0,82960.0,0.012054]
[1741947454265,0.0198906,82970.0,82967.0,0.241059]
[1741947454458,0.0198906,82970.0,82969.0,0.253105]
[1741947455009,0.0198906,82970.0,82969.0,0.25992669]
[1741947455799,0.0198906,82970.0,82969.0,0.26292669]
[1741947456046,0.0198906,82970.0,82969.0,0.25992669]
[1741947456250,6.44e-05,82970.0,82969.0,0.25992669]
[1741947456466,6.44e-05,82970.0,82969.0,0.38914726]
[1741947456467,4e-07,82970.0,82969.0,0.38914726]
[1741947456679,6e-07,82974.0,82973.0,0.26763485]
[1741947457234,6e-07,82974.0,82973.0,0.27442718]
[1741947458766,6e-07,82974.0,82973.0,0.28042718]
[1741947459034,6e-07,82974.0,82973.0,0.32155808]
[1741947459648,6e-07,82974.0,82973.0,0.32755808]
[1741947460247,6e-07,82974.0,82973.0,0.33255808]
[1741947460454,6e-07,82974.0,82973.0,0.40795808]
[1741947461205,6e-07,82974.0,82973.0,0.39595808]
[1741947461475,6e-07,82974.0,82973.0,0.40195808]
[1741947462388,6e-07,82974.0,82973.0,0.40795808]
[1741947462627,6e-07,82974.0,82973.0,0.45475808]
[1741947464433,6e-07,82974.0,82973.0,0.44975808]
[1741947465517,6e-07,82974.0,82973.0,0.58523808]
[1741947471392,6e-07,82974.0,82973.0,0.59023808]
[1741947472184,6e-07,82974.0,82973.0,0.59057648]
[1741947472391,2e-07,82979.0,82978.0,0.383778]
[1741947472686,2e-07,82979.0,82978.0,0.4882897]
[1741947474758,8e-07,82980.0,82979.0,0.03159185]
[1741947474964,8e-07,82980.0,82979.0,0.10969666]
[1741947475165,8e-07,82980.0,82979.0,0.11640528]
[1741947476166,8e-07,82980.0,82979.0,0.17770528]
[1741947476349,8e-07,82980.0,82979.0,0.25432104]
[1741947477540,4.187e-05,82980.0,82979.0,0.25432104]
[1741947477742,4.187e-05,82980.0,82979.0,0.24832104]
[1741947477962,4.187e-05,82980.0,82979.0,0.24232104]
[1741947478272,4.187e-05,82980.0,82979.0,0.25432104]
[1741947480761,4.187e-05,82980.0,82979.0,0.26340589]
[1741947481004,4.187e-05,82980.0,82979.0,0.39070589]
[1741947487363,1.83188885,82989.0,82988.0,0.27258785]
[1741947487545,1.83192991,82989.0,82988.0,0.44899875]
[1741947487933,1.83192991,82989.0,82988.0,0.45603457]
[1741947488619,1.85453146,82989.0,82988.0,0.46203457]
[1741947489038,1.85453146,82989.0,82988.0,0.46803457]
[1741947489440,1.61096437,82989.0,82988.0,0.46803457]
[1741947489859,0.59591237,82989.0,82988.0,0.54823457]
[1741947490066,3.7e-07,82989.0,82988.0,0.59743457]
[1741947491060,3.7e-07,82989.0,82988.0,0.59143457]
[1741947491263,0.01889679,83002.0,83001.0,0.253008]
[1741947491441,0.01930753,83002.0,83001.0,0.2807184]
[1741947491639,0.01930753,83002.0,83001.0,0.28770948]
[1741947491803,0.01930753,83002.0,83001.0,0.30225033]
[1741947492424,0.012043,83031.0,83001.0,0.30225033]
[1741947492425,0.0468,83029.0,83025.0,0.252935]
[1741947492632,0.02011595,83026.0,83025.0,0.252935]
[1741947492835,0.02011595,83026.0,83025.0,0.00689038]
[1741947493299,0.02011595,83026.0,83023.0,0.240894]
[1741947493467,0.02011595,83026.0,83025.0,0.00689038]
[1741947493665,0.02011595,83026.0,83024.0,0.00689382]
[1741947493865,0.02011595,83026.0,83025.0,0.00689038]
[1741947494363,0.02011595,83026.0,83022.0,0.2409]
[1741947494548,0.02011595,83026.0,83025.0,0.00687498]
[1741947494748,0.02011595,83026.0,83025.0,0.0395385]
[1741947494973,0.02011595,83026.0,83025.0,0.05845748]
[1741947495329,0.02011595,83026.0,83025.0,0.04641348]
[1741947495836,0.02011595,83026.0,83025.0,0.04741348]
[1741947496693,0.02011595,83026.0,83025.0,0.04841348]
[1741947496846,0.02011595,83026.0,83025.0,0.04741348]
[1741947497221,0.02011595,83026.0,83025.0,0.04941348]
[1741947497427,0.02011595,83026.0,83025.0,0.00887498]
[1741947497835,0.02011595,83026.0,83025.0,0.01087498]
[1741947499327,0.02011595,83026.0,83025.0,0.004]
[1741947500162,0.02011595,83026.0,83025.0,0.0108747]
[1741947503896,0.02011595,83026.0,83025.0,0.0229187]
[1741947505013,0.02011595,83026.0,83025.0,0.0108747]
[1741947505631,0.00029237,83026.0,83025.0,0.0229187]
[1741947505838,0.00029237,83026.0,83025.0,0.0209187]
[1741947505974,0.00029237,83026.0,83025.0,0.0068747]
[1741947506175,0.00029237,83026.0,83025.0,0.1621987]
[1741947506562,0.00029237,83026.0,83025.0,0.1581987]
[1741947506780,0.00029237,83026.0,83025.0,0.1621987]
[1741947507208,0.00029237,83026.0,83025.0,0.159403]
[1741947507401,0.00029237,83026.0,83025.0,0.160403]
[1741947507608,0.00029237,83026.0,83025.0,0.025123]
[1741947507949,0.00029237,83026.0,83025.0,0.1631987]
[1741947508286,0.00029237,83026.0,83025.0,0.1591987]
[1741947508540,0.00029237,83026.0,83025.0,0.1641987]
[1741947508739,0.01912527,83026.0,83025.0,0.1641987]
[1741947510925,0.01912527,83026.0,83025.0,0.23848537]
[1741947511265,0.01912527,83026.0,83025.0,0.1641987]
[1741947513470,0.01912527,83026.0,83025.0,0.1521547]
[1741947516496,0.27205727,83026.0,83025.0,0.1521547]
[1741947516717,0.01912527,83026.0,83025.0,0.1521547]
[1741947516896,0.01912527,83026.0,83025.0,0.14528]
[1741947517143,0.01912527,83026.0,83025.0,0.15213461]
[1741947517881,0.01912527,83026.0,83025.0,0.16417861]
[1741947518644,0.01912527,83026.0,83025.0,0.23359367]
[1741947519174,0.01912527,83026.0,83025.0,0.16417861]
[1741947519575,0.01912527,83026.0,83025.0,0.21067861]
[1741947519732,0.01912527,83026.0,83025.0,0.21063861]
[1741947522342,0.01912527,83026.0,83025.0,0.19859461]
[1741947522799,0.01912527,83026.0,83025.0,0.21063861]
[1741947523563,0.00029237,83026.0,83025.0,0.21063861]
[1741947523770,0.00029237,83026.0,83025.0,0.13531937]
[1741947523970,0.00029237,83026.0,83025.0,0.27055937]
[1741947524175,0.00029237,83026.0,83025.0,0.16413861]
[1741947537828,0.00029237,83026.0,83025.0,0.13413861]
[1741947538024,0.00029237,83026.0,83025.0,0.14269713]
[1741947538356,0.00029237,83026.0,83025.0,0.15474113]
[1741947540276,2.00029237,83026.0,83025.0,0.15474113]
[1741947542152,2.00029237,83026.0,83025.0,0.15584252]
[1741947545499,2.00029237,83026.0,83025.0,0.15618072]
[1741947549336,2.00029237,83026.0,83025.0,0.02094072]
[1741947549540,2.00029237,83026.0,83025.0,0.15618072]
[1741947549922,2.00029237,83026.0,83025.0,0.33198569]
[1741947550126,2.00029237,83026.0,83025.0,0.37848569]
[1741947551171,2.00029237,83026.0,83025.0,0.02694072]
[1741947551936,2.00029237,83026.0,83025.0,0.03294072]
[1741947552303,2.00029237,83026.0,83025.0,0.02694072]
[1741947552520,2.00029237,83026.0,83025.0,0.02094072]
[1741947552731,2.00029237,83026.0,83025.0,0.02694072]
[1741947552988,2.00029237,83026.0,83025.0,0.03294072]
[1741947553139,2.01918165,83026.0,83025.0,0.03294072]
[1741947557786,1.68977642,83026.0,83025.0,0.03294072]
[1741947558421,1.68994552,83026.0,83025.0,0.03294072]
[1741947559667,1.68994552,83026.0,83025.0,0.02089672]
[1741947559867,1.80990641,83026.0,83025.0,0.02089672]
[1741947560129,1.68994552,83026.0,83025.0,0.02089672]
[1741947560974,1.78128952,83026.0,83025.0,0.0123382]
[1741947562537,2.08128952,83026.0,83025.0,0.0123382]
[1741947563063,2.09260028,83026.0,83025.0,0.0123382]
[1741947567836,1.84001182,83026.0,83025.0,0.0123382]
[1741947568132,1.84001182,83026.0,83025.0,0.0063382]
[1741947568339,1.84001182,83026.0,83025.0,0.0003382]
[1741947568542,1.84001182,83026.0,83025.0,0.0053382]
[1741947569745,1.84001182,83026.0,83025.0,0.0103382]
[1741947570931,1.76071182,83026.0,83025.0,0.0103382]
[1741947571465,1.74866782,83026.0,83025.0,0.2512292]
[1741947571889,1.74866782,83026.0,83025.0,0.0103382]
[1741947572290,1.74866782,83026.0,83025.0,0.01889655]
[1741947573103,1.72977854,83026.0,83025.0,0.01889655]
[1741947573461,1.74182254,83026.0,83025.0,0.01889655]
[1741947573710,1.74182254,83026.0,83025.0,0.0103382]
[1741947577833,1.73051178,83026.0,83025.0,0.0103382]
[1741947579355,1.71846778,83026.0,83025.0,0.0103382]
[1741947579758,1.71846778,83026.0,83025.0,0.01889655]
[1741947579959,1.71846778,83026.0,83025.0,0.0103382]
[1741947580265,1.74181169,83026.0,83025.0,0.0103382]
[1741947582938,1.72976769,83026.0,83025.0,0.0103382]
[1741947583112,1.74865845,83026.0,83025.0,0.0103382]
[1741947583290,1.74865845,83026.0,83025.0,0.01889372]
[1741947583505,1.76070245,83026.0,83025.0,0.01889372]
[1741947583693,1.76070245,83026.0,83025.0,0.0103382]
[1741947589690,1.74865845,83026.0,83025.0,0.0103382]
[1741947589897,1.74865845,83026.0,83025.0,0.0223822]
[1741947590304,1.74865845,83026.0,83025.0,0.03093658]
[1741947590523,1.74865845,83026.0,83025.0,0.01889258]
[1741947591527,1.74865845,83026.0,83025.0,0.03093658]
[1741947593468,1.74865845,83026.0,83025.0,0.01889258]
[1741947594508,1.76070245,83026.0,83025.0,0.01889258]
[1741947595076,1.76070245,83026.0,83025.0,0.0103382]
[1741947598033,1.47418764,83026.0,83025.0,0.0103382]
[1741947601222,1.18928133,83026.0,83025.0,0.0103382]
[1741947603761,1.17723733,83026.0,83025.0,0.0103382]
[1741947603965,1.18928133,83026.0,83025.0,0.0103382]
[1741947604183,1.17723733,83026.0,83025.0,0.0103382]
[1741947604365,1.17723733,83026.0,83025.0,0.01888363]
[1741947604778,1.17723733,83026.0,83025.0,0.06281596]
[1741947605126,1.17723733,83026.0,83025.0,0.03092754]
[1741947605326,1.17723733,83026.0,83025.0,0.15892754]
[1741947605547,1.17723733,83026.0,83025.0,0.14688354]
[1741947606290,1.17723733,83026.0,83025.0,0.06568354]
[1741947606855,1.17723733,83026.0,83025.0,0.07772754]
[1741947607484,1.15834657,83026.0,83025.0,0.07772754]
[1741947615649,0.85834657,83026.0,83025.0,0.07772754]
[1741947615854,0.85834657,83026.0,83025.0,0.15982754]
[1741947616172,0.85834657,83026.0,83025.0,0.29506754]
[1741947616773,0.85834657,83026.0,83025.0,0.29502754]
[1741947617955,0.85834657,83026.0,83025.0,0.15982754]
[1741947618118,0.85834657,83026.0,83025.0,0.29502754]
[1741947618318,0.85834657,83026.0,83025.0,0.38689299]
[1741947620224,0.87723453,83026.0,83025.0,0.38689299]
[1741947620548,0.87723453,83026.0,83025.0,0.25169299]
[1741947620749,0.87723453,83026.0,83025.0,0.38689299]
[1741947621339,0.87723453,83026.0,83025.0,0.25169299]
[1741947621630,0.87723453,83026.0,83025.0,0.38689299]
[1741947622235,0.87723453,83026.0,83025.0,0.25169299]
[1741947622438,0.87723453,83026.0,83025.0,0.38689299]
[1741947622848,0.87723453,83026.0,83025.0,0.38189299]
[1741947623211,0.86593462,83026.0,83025.0,0.38189299]
[1741947623409,0.86593462,83026.0,83025.0,0.38789299]
[1741947624330,0.86593462,83026.0,83025.0,0.38289299]
[1741947624709,0.86593462,83026.0,83025.0,0.38889299]